[Event "January 2 Late 2024"]
[Site "https://www.chess.com"]
[Date "2024.01.02"]
[Round "7"]
[White "Pranav, V"]
[Black "Melkumyan, Hrant"]
[Result "0-1"]
[Board "10"]
[TimeControl "180+1"]
[WhiteFideId "25060783"]
[BlackFideId "13302485"]
[WhiteElo "3040"]
[BlackElo "2881"]
[WhiteTeam "IND"]
[BlackTeam "ARM"]
[WhiteClock "0:00:02"]
[BlackClock "0:00:06"]

1. e4 {[%clk 0:03:00]}  e5 {[%clk 0:02:59]} 2. Nf3 {[%clk 0:03:01]}  Nc6 {[%clk 0:02:54]} 3. Bb5 {[%clk 0:03:00]}  Nf6 {[%clk 0:02:53]} 4. d3 {[%clk 0:02:59]}  Bc5 {[%clk 0:02:51]} 5. c3 {[%clk 0:02:59]}  O-O {[%clk 0:02:50]} 6. O-O {[%clk 0:02:59]}  Re8 {[%clk 0:02:46]} 7. h3 {[%clk 0:02:56]}  h6 {[%clk 0:02:43]} 8. Re1 {[%clk 0:02:56]}  a6 {[%clk 0:02:42]} 9. Ba4 {[%clk 0:02:55]}  b5 {[%clk 0:02:35]} 10. Bb3 {[%clk 0:02:54]}  d6 {[%clk 0:02:34]} 11. Nbd2 {[%clk 0:02:54]}  Be6 {[%clk 0:02:33]} 12. Nf1 {[%clk 0:02:37]}  d5 {[%clk 0:02:33]} 13. Qe2 {[%clk 0:02:37]}  d4 {[%clk 0:02:30]} 14. Ng3 {[%clk 0:02:28]}  a5 {[%clk 0:02:25]} 15. Bxe6 {[%clk 0:02:21]}  Rxe6 {[%clk 0:02:25]} 16. Nf5 {[%clk 0:02:21]}  Qd7 {[%clk 0:02:12]} 17. Bd2 {[%clk 0:02:10]}  Rd8 {[%clk 0:02:11]} 18. cxd4 {[%clk 0:02:09]}  Nxd4 {[%clk 0:01:22]} 19. N3xd4 {[%clk 0:02:07]}  Bxd4 {[%clk 0:01:23]} 20. Bxa5 {[%clk 0:02:07]}  Ba7 {[%clk 0:00:59]} 21. Rac1 {[%clk 0:01:59]}  Rc8 {[%clk 0:00:59]} 22. Qf3 {[%clk 0:01:50]}  Kh7 {[%clk 0:00:53]} 23. Bd2 {[%clk 0:01:33]}  c5 {[%clk 0:00:49]} 24. Rcd1 {[%clk 0:01:26]}  Rd8 {[%clk 0:00:47]} 25. Bc1 {[%clk 0:01:25]}  Ng8 {[%clk 0:00:43]} 26. Ne3 {[%clk 0:01:20]}  f6 {[%clk 0:00:37]} 27. Nd5 {[%clk 0:01:08]}  Ne7 {[%clk 0:00:36]} 28. Nxe7 {[%clk 0:01:04]}  Qxe7 {[%clk 0:00:33]} 29. b3 {[%clk 0:01:03]}  Red6 {[%clk 0:00:33]} 30. Be3 {[%clk 0:00:54]}  Qd7 {[%clk 0:00:23]} 31. Kh2 {[%clk 0:00:15]}  Kh8 {[%clk 0:00:23]} 32. Qh5 {[%clk 0:00:12]}  Qe8 {[%clk 0:00:21]} 33. Qh4 {[%clk 0:00:11]}  Kh7 {[%clk 0:00:20]} 34. Rc1 {[%clk 0:00:10]}  Rc8 {[%clk 0:00:15]} 35. Red1 {[%clk 0:00:10]}  Qd7 {[%clk 0:00:15]} 36. Qh5 {[%clk 0:00:10]}  Qe6 {[%clk 0:00:13]} 37. Qe2 {[%clk 0:00:09]}  Qd7 {[%clk 0:00:13]} 38. h4 {[%clk 0:00:05]}  Qf7 {[%clk 0:00:11]} 39. g3 {[%clk 0:00:05]}  Rd7 {[%clk 0:00:12]} 40. a4 {[%clk 0:00:04]}  Qxb3 {[%clk 0:00:10]} 41. Qg4 {[%clk 0:00:05]}  Rcd8 {[%clk 0:00:08]} 42. Qf5+ {[%clk 0:00:03]}  Kh8 {[%clk 0:00:08]} 43. axb5 {[%clk 0:00:02]}  Qxb5 {[%clk 0:00:08]} 44. Bxh6 {[%clk 0:00:02]}  gxh6 {[%clk 0:00:08]} 45. Qxf6+ {[%clk 0:00:03]}  Kh7 {[%clk 0:00:09]} 46. Qf5+ {[%clk 0:00:03]}  Kh8 {[%clk 0:00:09]} 47. Qf6+ {[%clk 0:00:03]}  Kh7 {[%clk 0:00:09]} 48. Rb1 {[%clk 0:00:03]}  Qa4 {[%clk 0:00:08]} 49. Qf5+ {[%clk 0:00:03]}  Kh8 {[%clk 0:00:08]} 50. Qf6+ {[%clk 0:00:03]}  Kh7 {[%clk 0:00:09]} 51. Ra1 {[%clk 0:00:04]}  Qd4 {[%clk 0:00:07]} 52. Ra6 {[%clk 0:00:04]}  Rg7 {[%clk 0:00:03]} 53. Qf5+ {[%clk 0:00:03]}  Kg8 {[%clk 0:00:03]} 54. Rxh6 {[%clk 0:00:03]}  Qd7 {[%clk 0:00:03]} 55. Qh5 {[%clk 0:00:03]}  Kf8 {[%clk 0:00:01]} 56. Rh8+ {[%clk 0:00:02]}  Ke7 {[%clk 0:00:02]} 57. Qxe5+ {[%clk 0:00:03]}  Kf7 {[%clk 0:00:02]} 58. Rh6 {[%clk 0:00:03]}  Kg8 {[%clk 0:00:02]} 59. Qh5 {[%clk 0:00:03]}  Kf8 {[%clk 0:00:02]} 60. Re1 {[%clk 0:00:03]}  c4 {[%clk 0:00:02]} 61. d4 {[%clk 0:00:02]}  Bxd4 {[%clk 0:00:02]} 62. e5 {[%clk 0:00:03]}  Ke7 {[%clk 0:00:02]} 63. e6 {[%clk 0:00:03]}  Qd5 {[%clk 0:00:02]} 64. Qe2 {[%clk 0:00:01]}  Rf8 {[%clk 0:00:03]} 65. f4 {[%clk 0:00:02]}  c3 {[%clk 0:00:03]} 66. Qc2 {[%clk 0:00:02]}  Qc5 {[%clk 0:00:03]} 67. Rh7 {[%clk 0:00:02]}  Rg8 {[%clk 0:00:04]} 68. Rxg7+ {[%clk 0:00:02]}  Rxg7 {[%clk 0:00:05]} 69. Qe4 {[%clk 0:00:03]}  Qd6 {[%clk 0:00:05]} 70. Qb7+ {[%clk 0:00:03]}  Kf6 {[%clk 0:00:05]} 71. Qc8 {[%clk 0:00:03]}  Ke7 {[%clk 0:00:05]} 72. Qb7+ {[%clk 0:00:03]}  Kf6 {[%clk 0:00:05]} 73. Qc8 {[%clk 0:00:04]}  Bc5 {[%clk 0:00:05]} 74. h5 {[%clk 0:00:01]}  c2 {[%clk 0:00:05]} 75. Kh3 {[%clk 0:00:01]}  Ke7 {[%clk 0:00:03]} 76. Qb7+ {[%clk 0:00:01]}  Kf6 {[%clk 0:00:04]} 77. Qc8 {[%clk 0:00:02]}  Bb6 {[%clk 0:00:04]} 78. h6 {[%clk 0:00:02]}  Rh7 {[%clk 0:00:04]} 79. Qg8 {[%clk 0:00:03]}  Rxh6+ {[%clk 0:00:05]} 80. Kg2 {[%clk 0:00:03]}  Qd2+ {[%clk 0:00:05]} 81. Kf3 {[%clk 0:00:04]}  Qd3+ {[%clk 0:00:06]} 82. Kg2 {[%clk 0:00:03]}  Qd5+ {[%clk 0:00:06]} 83. Kf1 {[%clk 0:00:02]}  Qf3# {[%clk 0:00:06]} 0-1

[Event "January 2 Late 2024"]
[Site "https://www.chess.com"]
[Date "2024.01.02"]
[Round "7"]
[White "Radjabov, Teimour"]
[Black "Kukhmazov, Arsen"]
[Result "1-0"]
[Board "11"]
[TimeControl "180+1"]
[WhiteFideId "13400924"]
[BlackFideId "24108260"]
[WhiteElo "3031"]
[BlackElo "2875"]
[WhiteTeam "AZE"]
[BlackTeam "FID"]
[WhiteClock "0:00:03"]
[BlackClock "0:00:02"]

1. e4 {[%clk 0:02:58]}  c6 {[%clk 0:03:00]} 2. d4 {[%clk 0:02:53]}  d5 {[%clk 0:03:01]} 3. exd5 {[%clk 0:02:53]}  cxd5 {[%clk 0:03:02]} 4. Bd3 {[%clk 0:02:53]}  Nc6 {[%clk 0:03:00]} 5. c3 {[%clk 0:02:53]}  Nf6 {[%clk 0:03:00]} 6. h3 {[%clk 0:02:54]}  e5 {[%clk 0:02:59]} 7. dxe5 {[%clk 0:02:54]}  Nxe5 {[%clk 0:03:00]} 8. Nf3 {[%clk 0:02:54]}  Nxd3+ {[%clk 0:03:00]} 9. Qxd3 {[%clk 0:02:54]}  Bd6 {[%clk 0:03:00]} 10. O-O {[%clk 0:02:53]}  O-O {[%clk 0:03:00]} 11. Bg5 {[%clk 0:02:50]}  h6 {[%clk 0:03:01]} 12. Bh4 {[%clk 0:02:46]}  Bf4 {[%clk 0:02:56]} 13. Nbd2 {[%clk 0:02:35]}  Qd6 {[%clk 0:02:44]} 14. Nd4 {[%clk 0:02:09]}  Bd7 {[%clk 0:02:32]} 15. Bg3 {[%clk 0:01:54]}  Bxg3 {[%clk 0:02:13]} 16. Qxg3 {[%clk 0:01:54]}  Qxg3 {[%clk 0:02:09]} 17. fxg3 {[%clk 0:01:54]}  Rfe8 {[%clk 0:02:09]} 18. Rfe1 {[%clk 0:01:53]}  Kf8 {[%clk 0:02:08]} 19. Kf2 {[%clk 0:01:52]}  Be6 {[%clk 0:01:40]} 20. Re3 {[%clk 0:01:50]}  Re7 {[%clk 0:01:40]} 21. Rae1 {[%clk 0:01:49]}  Rae8 {[%clk 0:01:41]} 22. g4 {[%clk 0:01:40]}  Nd7 {[%clk 0:01:41]} 23. Nb5 {[%clk 0:01:36]}  Nb6 {[%clk 0:01:15]} 24. Nd6 {[%clk 0:01:17]}  Rd8 {[%clk 0:01:10]} 25. Nf5 {[%clk 0:01:17]}  Rc7 {[%clk 0:01:10]} 26. Nd4 {[%clk 0:01:17]}  Bd7 {[%clk 0:01:09]} 27. Re5 {[%clk 0:01:06]}  Re8 {[%clk 0:00:51]} 28. Rxe8+ {[%clk 0:00:41]}  Bxe8 {[%clk 0:00:52]} 29. Rb1 {[%clk 0:00:41]}  Na4 {[%clk 0:00:49]} 30. N2b3 {[%clk 0:00:36]}  Re7 {[%clk 0:00:45]} 31. Nf5 {[%clk 0:00:33]}  Re5 {[%clk 0:00:44]} 32. Nbd4 {[%clk 0:00:28]}  Bd7 {[%clk 0:00:40]} 33. Ng3 {[%clk 0:00:21]}  Ke7 {[%clk 0:00:37]} 34. Nf1 {[%clk 0:00:20]}  Kd6 {[%clk 0:00:37]} 35. Ne3 {[%clk 0:00:20]}  g6 {[%clk 0:00:35]} 36. Kf3 {[%clk 0:00:19]}  a6 {[%clk 0:00:24]} 37. Nf1 {[%clk 0:00:18]}  Nc5 {[%clk 0:00:20]} 38. Rd1 {[%clk 0:00:17]}  f5 {[%clk 0:00:16]} 39. gxf5 {[%clk 0:00:15]}  Bxf5 {[%clk 0:00:17]} 40. Ng3 {[%clk 0:00:12]}  Be4+ {[%clk 0:00:16]} 41. Nxe4+ {[%clk 0:00:11]}  Rxe4 {[%clk 0:00:13]} 42. Rd2 {[%clk 0:00:08]}  Na4 {[%clk 0:00:13]} 43. Ne2 {[%clk 0:00:05]}  Ke5 {[%clk 0:00:12]} 44. Nc1 {[%clk 0:00:05]}  g5 {[%clk 0:00:08]} 45. Nd3+ {[%clk 0:00:05]}  Kd6 {[%clk 0:00:07]} 46. g3 {[%clk 0:00:04]}  a5 {[%clk 0:00:06]} 47. Kf2 {[%clk 0:00:04]}  b6 {[%clk 0:00:05]} 48. Kf3 {[%clk 0:00:04]}  Ke6 {[%clk 0:00:05]} 49. Kf2 {[%clk 0:00:04]}  Kd6 {[%clk 0:00:05]} 50. Ne1 {[%clk 0:00:04]}  Ke5 {[%clk 0:00:04]} 51. Nf3+ {[%clk 0:00:04]}  Kd6 {[%clk 0:00:05]} 52. Nd4 {[%clk 0:00:05]}  Ke5 {[%clk 0:00:04]} 53. Kg2 {[%clk 0:00:05]}  h5 {[%clk 0:00:03]} 54. Rf2 {[%clk 0:00:05]}  g4 {[%clk 0:00:02]} 55. h4 {[%clk 0:00:04]}  Kd6 {[%clk 0:00:02]} 56. Rf6+ {[%clk 0:00:03]}  Kc5 {[%clk 0:00:02]} 57. Rc6# {[%clk 0:00:03]} 1-0

[Event "January 2 Late 2024"]
[Site "https://www.chess.com"]
[Date "2024.01.02"]
[Round "7"]
[White "Xiong, Jeffery"]
[Black "Mahdavi, Reza"]
[Result "1-0"]
[Board "13"]
[TimeControl "180+1"]
[WhiteFideId "2047640"]
[BlackFideId "12595926"]
[WhiteElo "3020"]
[BlackElo "2869"]
[WhiteTeam "USA"]
[BlackTeam "IRI"]
[WhiteClock "0:00:29"]
[BlackClock "0:00:00"]

1. d4 {[%clk 0:03:00]}  Nf6 {[%clk 0:02:59]} 2. c4 {[%clk 0:03:01]}  e6 {[%clk 0:02:59]} 3. Nc3 {[%clk 0:03:01]}  Bb4 {[%clk 0:02:59]} 4. Nf3 {[%clk 0:03:01]}  c5 {[%clk 0:02:55]} 5. g3 {[%clk 0:03:02]}  O-O {[%clk 0:02:53]} 6. Bg2 {[%clk 0:03:01]}  d5 {[%clk 0:02:46]} 7. cxd5 {[%clk 0:02:52]}  Nxd5 {[%clk 0:02:36]} 8. Bd2 {[%clk 0:02:49]}  cxd4 {[%clk 0:02:26]} 9. Nxd5 {[%clk 0:02:49]}  Bxd2+ {[%clk 0:02:26]} 10. Qxd2 {[%clk 0:02:50]}  Qxd5 {[%clk 0:02:25]} 11. Qxd4 {[%clk 0:02:49]}  Qa5+ {[%clk 0:02:16]} 12. Qd2 {[%clk 0:02:49]}  Qb6 {[%clk 0:02:16]} 13. Ne5 {[%clk 0:02:44]}  Rd8 {[%clk 0:02:00]} 14. Qc3 {[%clk 0:02:44]}  Nd7 {[%clk 0:01:54]} 15. Nc4 {[%clk 0:02:44]}  Qc7 {[%clk 0:01:45]} 16. Rc1 {[%clk 0:02:43]}  Nf6 {[%clk 0:01:37]} 17. Ne3 {[%clk 0:02:39]}  Qb6 {[%clk 0:01:28]} 18. O-O {[%clk 0:02:37]}  Bd7 {[%clk 0:01:28]} 19. Nc4 {[%clk 0:02:37]}  Qa6 {[%clk 0:01:28]} 20. Qa5 {[%clk 0:02:00]}  Bb5 {[%clk 0:01:01]} 21. Rfd1 {[%clk 0:01:52]}  Rxd1+ {[%clk 0:00:42]} 22. Rxd1 {[%clk 0:01:53]}  h6 {[%clk 0:00:42]} 23. Bxb7 {[%clk 0:01:26]}  Qxb7 {[%clk 0:00:41]} 24. Nd6 {[%clk 0:01:27]}  Qd7 {[%clk 0:00:29]} 25. Qxb5 {[%clk 0:01:25]}  Qxb5 {[%clk 0:00:27]} 26. Nxb5 {[%clk 0:01:25]}  Rb8 {[%clk 0:00:28]} 27. Nxa7 {[%clk 0:01:18]}  Rxb2 {[%clk 0:00:23]} 28. a4 {[%clk 0:01:18]}  Ra2 {[%clk 0:00:15]} 29. Rd4 {[%clk 0:01:17]}  Nd5 {[%clk 0:00:16]} 30. e4 {[%clk 0:00:44]}  Nc3 {[%clk 0:00:14]} 31. Rd8+ {[%clk 0:00:45]}  Kh7 {[%clk 0:00:14]} 32. Nb5 {[%clk 0:00:46]}  Nxe4 {[%clk 0:00:09]} 33. Ra8 {[%clk 0:00:41]}  Nxf2 {[%clk 0:00:07]} 34. a5 {[%clk 0:00:42]}  Ne4 {[%clk 0:00:04]} 35. a6 {[%clk 0:00:42]}  g5 {[%clk 0:00:02]} 36. a7 {[%clk 0:00:38]}  g4 {[%clk 0:00:00]} 37. Rf8 {[%clk 0:00:29]} 1-0

[Event "January 2 Late 2024"]
[Site "https://www.chess.com"]
[Date "2024.01.02"]
[Round "7"]
[White "Iturrizaga Bonelli, Eduardo"]
[Black "Song, Ethan"]
[Result "1-0"]
[Board "17"]
[TimeControl "180+1"]
[WhiteFideId "3901211"]
[BlackFideId "62900412"]
[WhiteElo "2987"]
[BlackElo "2776"]
[WhiteTeam "ESP"]
[BlackTeam "CAN"]
[WhiteClock "0:00:31"]
[BlackClock "0:01:19"]

1. c4 {[%clk 0:02:49]}  e5 {[%clk 0:02:59]} 2. g3 {[%clk 0:02:49]}  Nf6 {[%clk 0:02:59]} 3. Bg2 {[%clk 0:02:50]}  c6 {[%clk 0:03:00]} 4. d4 {[%clk 0:02:48]}  e4 {[%clk 0:02:59]} 5. d5 {[%clk 0:02:49]}  Qe7 {[%clk 0:02:55]} 6. Nc3 {[%clk 0:02:48]}  h6 {[%clk 0:02:46]} 7. Qd4 {[%clk 0:02:37]}  c5 {[%clk 0:02:40]} 8. Qe3 {[%clk 0:02:32]}  d6 {[%clk 0:02:40]} 9. Nxe4 {[%clk 0:02:31]}  Nxe4 {[%clk 0:02:40]} 10. Qxe4 {[%clk 0:02:32]}  f5 {[%clk 0:02:37]} 11. Qc2 {[%clk 0:02:26]}  g6 {[%clk 0:02:37]} 12. Nh3 {[%clk 0:02:21]}  Bg7 {[%clk 0:02:35]} 13. Nf4 {[%clk 0:02:20]}  Qf7 {[%clk 0:02:35]} 14. Ne6 {[%clk 0:02:10]}  Na6 {[%clk 0:02:28]} 15. O-O {[%clk 0:02:00]}  Bf6 {[%clk 0:02:18]} 16. e4 {[%clk 0:01:54]}  Nb4 {[%clk 0:02:13]} 17. Qd1 {[%clk 0:01:49]}  Bxe6 {[%clk 0:02:12]} 18. dxe6 {[%clk 0:01:49]}  Qxe6 {[%clk 0:02:13]} 19. exf5 {[%clk 0:01:50]}  Qxf5 {[%clk 0:02:08]} 20. Bxb7 {[%clk 0:01:48]}  Rb8 {[%clk 0:02:06]} 21. Re1+ {[%clk 0:01:37]}  Kf7 {[%clk 0:02:03]} 22. Be4 {[%clk 0:01:36]}  Qd7 {[%clk 0:01:57]} 23. a3 {[%clk 0:01:36]}  Na6 {[%clk 0:01:53]} 24. Qd3 {[%clk 0:01:15]}  g5 {[%clk 0:01:44]} 25. Bf5 {[%clk 0:00:59]}  Qc7 {[%clk 0:01:41]} 26. Rb1 {[%clk 0:00:52]}  Kg7 {[%clk 0:01:36]} 27. Re6 {[%clk 0:00:46]}  Rbd8 {[%clk 0:01:36]} 28. Bd2 {[%clk 0:00:45]}  Rhf8 {[%clk 0:01:35]} 29. Rbe1 {[%clk 0:00:42]}  Rf7 {[%clk 0:01:26]} 30. Bc3 {[%clk 0:00:39]}  Bxc3 {[%clk 0:01:22]} 31. Qxc3+ {[%clk 0:00:39]}  Kg8 {[%clk 0:01:21]} 32. Rg6+ {[%clk 0:00:38]}  Kh7 {[%clk 0:01:19]} 33. Rg7+ {[%clk 0:00:31]} 1-0

[Event "January 2 Late 2024"]
[Site "https://www.chess.com"]
[Date "2024.01.02"]
[Round "7"]
[White "Salem, A.R. Saleh"]
[Black "Atanasov, Anthony"]
[Result "1-0"]
[Board "18"]
[TimeControl "180+1"]
[WhiteFideId "9301348"]
[BlackFideId "2623897"]
[WhiteElo "2978"]
[BlackElo "2676"]
[WhiteTeam "UAE"]
[BlackTeam "CAN"]
[WhiteClock "0:00:36"]
[BlackClock "0:00:00"]

1. d4 {[%clk 0:02:58]}  Nf6 {[%clk 0:02:58]} 2. c4 {[%clk 0:02:56]}  c6 {[%clk 0:02:58]} 3. Nf3 {[%clk 0:02:53]}  d5 {[%clk 0:02:59]} 4. Nc3 {[%clk 0:02:53]}  a6 {[%clk 0:02:59]} 5. g3 {[%clk 0:02:53]}  Bf5 {[%clk 0:02:49]} 6. Bg2 {[%clk 0:02:49]}  e6 {[%clk 0:02:50]} 7. O-O {[%clk 0:02:48]}  Be7 {[%clk 0:02:50]} 8. Nh4 {[%clk 0:02:44]}  Bg4 {[%clk 0:02:50]} 9. Qb3 {[%clk 0:02:29]}  b5 {[%clk 0:02:46]} 10. cxd5 {[%clk 0:02:29]}  cxd5 {[%clk 0:02:40]} 11. h3 {[%clk 0:02:28]}  Bh5 {[%clk 0:02:40]} 12. e4 {[%clk 0:02:23]}  Nxe4 {[%clk 0:02:04]} 13. Nxe4 {[%clk 0:02:20]}  dxe4 {[%clk 0:01:59]} 14. Bxe4 {[%clk 0:02:15]}  Ra7 {[%clk 0:01:59]} 15. d5 {[%clk 0:02:11]}  Bxh4 {[%clk 0:01:51]} 16. gxh4 {[%clk 0:02:10]}  Qxh4 {[%clk 0:01:52]} 17. Bg2 {[%clk 0:01:41]}  exd5 {[%clk 0:01:33]} 18. Re1+ {[%clk 0:01:12]}  Re7 {[%clk 0:01:34]} 19. Rxe7+ {[%clk 0:01:12]}  Qxe7 {[%clk 0:01:32]} 20. Qxd5 {[%clk 0:01:12]}  Qe1+ {[%clk 0:00:44]} 21. Kh2 {[%clk 0:01:11]}  O-O {[%clk 0:00:45]} 22. Qxh5 {[%clk 0:01:07]}  Qxf2 {[%clk 0:00:36]} 23. Qf3 {[%clk 0:01:02]}  Qc2 {[%clk 0:00:31]} 24. Qc3 {[%clk 0:01:01]}  Qa4 {[%clk 0:00:23]} 25. b4 {[%clk 0:00:56]}  Nd7 {[%clk 0:00:16]} 26. Bb2 {[%clk 0:00:54]}  Nf6 {[%clk 0:00:16]} 27. Bd5 {[%clk 0:00:47]}  a5 {[%clk 0:00:07]} 28. Rg1 {[%clk 0:00:45]}  Re8 {[%clk 0:00:00]} 29. Rxg7+ {[%clk 0:00:36]} 1-0

[Event "January 2 Late 2024"]
[Site "https://www.chess.com"]
[Date "2024.01.02"]
[Round "7"]
[White "Adewumi, Tanitoluwa"]
[Black "Nepomniachtchi, Ian"]
[Result "0-1"]
[Board "19"]
[TimeControl "180+1"]
[WhiteFideId "30966396"]
[BlackFideId "4168119"]
[WhiteElo "2719"]
[BlackElo "3120"]
[WhiteTeam "USA"]
[BlackTeam "RUS"]
[WhiteClock "0:00:00"]
[BlackClock "0:01:30"]

1. e4 {[%clk 0:02:59]}  c5 {[%clk 0:02:57]} 2. Nf3 {[%clk 0:02:58]}  d6 {[%clk 0:02:58]} 3. Bb5+ {[%clk 0:02:58]}  Nd7 {[%clk 0:02:57]} 4. c3 {[%clk 0:02:53]}  a6 {[%clk 0:02:58]} 5. Bd3 {[%clk 0:02:52]}  Ngf6 {[%clk 0:02:58]} 6. Bc2 {[%clk 0:02:52]}  g6 {[%clk 0:02:58]} 7. d4 {[%clk 0:02:52]}  Bg7 {[%clk 0:02:58]} 8. O-O {[%clk 0:02:52]}  O-O {[%clk 0:02:57]} 9. Re1 {[%clk 0:02:51]}  e5 {[%clk 0:02:53]} 10. dxe5 {[%clk 0:02:40]}  Nxe5 {[%clk 0:02:52]} 11. Nxe5 {[%clk 0:02:26]}  dxe5 {[%clk 0:02:53]} 12. Qxd8 {[%clk 0:02:26]}  Rxd8 {[%clk 0:02:52]} 13. Be3 {[%clk 0:02:26]}  c4 {[%clk 0:02:44]} 14. h3 {[%clk 0:02:11]}  Be6 {[%clk 0:02:42]} 15. a4 {[%clk 0:02:10]}  Bf8 {[%clk 0:02:39]} 16. a5 {[%clk 0:02:00]}  Nd7 {[%clk 0:02:34]} 17. Nd2 {[%clk 0:01:49]}  Nc5 {[%clk 0:02:30]} 18. Red1 {[%clk 0:01:23]}  f6 {[%clk 0:02:16]} 19. Rab1 {[%clk 0:01:16]}  Rac8 {[%clk 0:02:11]} 20. Kf1 {[%clk 0:00:52]}  Kf7 {[%clk 0:02:10]} 21. Ke2 {[%clk 0:00:52]}  h5 {[%clk 0:02:05]} 22. Bxc5 {[%clk 0:00:31]}  Rxc5 {[%clk 0:02:01]} 23. b4 {[%clk 0:00:26]}  cxb3 {[%clk 0:01:57]} 24. Bxb3 {[%clk 0:00:26]}  Rxa5 {[%clk 0:01:36]} 25. Bxe6+ {[%clk 0:00:23]}  Kxe6 {[%clk 0:01:37]} 26. Rb6+ {[%clk 0:00:20]}  Rd6 {[%clk 0:01:34]} 27. Rdb1 {[%clk 0:00:06]}  Ra2 {[%clk 0:01:29]} 28. Rxd6+ {[%clk 0:00:05]}  Kxd6 {[%clk 0:01:30]} 29. Rxb7 {[%clk 0:00:00]}  Bh6 {[%clk 0:01:30]} 0-1

[Event "January 2 Late 2024"]
[Site "https://www.chess.com"]
[Date "2024.01.02"]
[Round "7"]
[White "Flores, Diego"]
[Black "Duda, Jan-Krzysztof"]
[Result "0-1"]
[Board "20"]
[TimeControl "180+1"]
[WhiteFideId "108049"]
[BlackFideId "1170546"]
[WhiteElo "2748"]
[BlackElo "3045"]
[WhiteTeam "ARG"]
[BlackTeam "POL"]
[WhiteClock "0:00:04"]
[BlackClock "0:01:25"]

1. c4 {[%clk 0:03:00]}  Nf6 {[%clk 0:02:57]} 2. Nc3 {[%clk 0:03:00]}  d5 {[%clk 0:02:57]} 3. cxd5 {[%clk 0:03:00]}  Nxd5 {[%clk 0:02:58]} 4. g3 {[%clk 0:03:00]}  e5 {[%clk 0:02:58]} 5. Bg2 {[%clk 0:03:00]}  Nf6 {[%clk 0:02:59]} 6. Nf3 {[%clk 0:02:48]}  Nc6 {[%clk 0:02:58]} 7. O-O {[%clk 0:02:48]}  h6 {[%clk 0:02:59]} 8. a3 {[%clk 0:02:35]}  Bd6 {[%clk 0:02:57]} 9. b4 {[%clk 0:02:33]}  a6 {[%clk 0:02:57]} 10. d3 {[%clk 0:02:31]}  O-O {[%clk 0:02:58]} 11. Nd2 {[%clk 0:02:27]}  Bd7 {[%clk 0:02:57]} 12. Nc4 {[%clk 0:02:26]}  Re8 {[%clk 0:02:57]} 13. Be3 {[%clk 0:02:25]}  Rb8 {[%clk 0:02:50]} 14. b5 {[%clk 0:02:20]}  axb5 {[%clk 0:02:47]} 15. Nxd6 {[%clk 0:02:11]}  cxd6 {[%clk 0:02:46]} 16. Nxb5 {[%clk 0:02:11]}  Be6 {[%clk 0:02:37]} 17. Bd2 {[%clk 0:01:57]}  Qd7 {[%clk 0:02:36]} 18. Rc1 {[%clk 0:01:52]}  d5 {[%clk 0:02:34]} 19. Re1 {[%clk 0:01:41]}  Bh3 {[%clk 0:02:25]} 20. Bh1 {[%clk 0:01:41]}  Ra8 {[%clk 0:02:23]} 21. a4 {[%clk 0:01:41]}  Ra6 {[%clk 0:02:17]} 22. Qb3 {[%clk 0:01:40]}  Rea8 {[%clk 0:02:16]} 23. Ra1 {[%clk 0:01:17]}  d4 {[%clk 0:02:16]} 24. a5 {[%clk 0:00:48]}  Nxa5 {[%clk 0:02:06]} 25. Bxa5 {[%clk 0:00:47]}  Rxa5 {[%clk 0:02:07]} 26. Rxa5 {[%clk 0:00:47]}  Rxa5 {[%clk 0:02:08]} 27. Na3 {[%clk 0:00:47]}  b5 {[%clk 0:02:03]} 28. Rb1 {[%clk 0:00:46]}  Be6 {[%clk 0:01:45]} 29. Qb2 {[%clk 0:00:46]}  Qe7 {[%clk 0:01:41]} 30. Nxb5 {[%clk 0:00:44]}  Ra2 {[%clk 0:01:41]} 31. Qc1 {[%clk 0:00:36]}  Rxe2 {[%clk 0:01:41]} 32. Rb2 {[%clk 0:00:18]}  Rxb2 {[%clk 0:01:28]} 33. Qxb2 {[%clk 0:00:19]}  Qc5 {[%clk 0:01:28]} 34. Na3 {[%clk 0:00:14]}  Bf5 {[%clk 0:01:26]} 35. Nc4 {[%clk 0:00:10]}  Bxd3 {[%clk 0:01:25]} 36. Qb8+ {[%clk 0:00:07]}  Kh7 {[%clk 0:01:25]} 37. Nxe5 {[%clk 0:00:06]}  Qc1+ {[%clk 0:01:26]} 38. Kg2 {[%clk 0:00:04]}  Qf1+ {[%clk 0:01:25]} 0-1

[Event "January 2 Late 2024"]
[Site "https://www.chess.com"]
[Date "2024.01.02"]
[Round "7"]
[White "Makridis, Dimitrios"]
[Black "Rasulov, Vugar"]
[Result "0-1"]
[Board "23"]
[TimeControl "180+1"]
[WhiteFideId "25864475"]
[BlackFideId "13402390"]
[WhiteElo "2720"]
[BlackElo "2968"]
[WhiteTeam "GRE"]
[BlackTeam "AZE"]
[WhiteClock "0:00:03"]
[BlackClock "0:00:30"]

1. e4 {[%clk 0:03:00]}  c5 {[%clk 0:02:59]} 2. Nf3 {[%clk 0:02:59]}  Nc6 {[%clk 0:02:59]} 3. Bb5 {[%clk 0:02:59]}  d6 {[%clk 0:03:00]} 4. O-O {[%clk 0:02:59]}  Bd7 {[%clk 0:03:00]} 5. Re1 {[%clk 0:02:58]}  a6 {[%clk 0:03:01]} 6. Bf1 {[%clk 0:02:59]}  Bg4 {[%clk 0:03:01]} 7. c3 {[%clk 0:02:58]}  g6 {[%clk 0:02:52]} 8. h3 {[%clk 0:02:50]}  Bxf3 {[%clk 0:02:51]} 9. Qxf3 {[%clk 0:02:51]}  Bg7 {[%clk 0:02:47]} 10. d3 {[%clk 0:02:50]}  Nf6 {[%clk 0:02:48]} 11. Nd2 {[%clk 0:02:50]}  O-O {[%clk 0:02:48]} 12. g3 {[%clk 0:02:50]}  Nd7 {[%clk 0:02:47]} 13. Qe2 {[%clk 0:02:41]}  b5 {[%clk 0:02:47]} 14. f4 {[%clk 0:02:40]}  b4 {[%clk 0:02:47]} 15. c4 {[%clk 0:02:35]}  Nd4 {[%clk 0:02:43]} 16. Qd1 {[%clk 0:02:33]}  e5 {[%clk 0:02:40]} 17. Nf3 {[%clk 0:02:33]}  exf4 {[%clk 0:02:36]} 18. Bxf4 {[%clk 0:02:24]}  Nxf3+ {[%clk 0:02:34]} 19. Qxf3 {[%clk 0:02:25]}  Bxb2 {[%clk 0:02:34]} 20. Rab1 {[%clk 0:02:18]}  Be5 {[%clk 0:02:30]} 21. Bg2 {[%clk 0:02:17]}  a5 {[%clk 0:02:29]} 22. Bxe5 {[%clk 0:02:03]}  Nxe5 {[%clk 0:02:28]} 23. Qe3 {[%clk 0:02:03]}  a4 {[%clk 0:02:24]} 24. d4 {[%clk 0:01:56]}  Nxc4 {[%clk 0:02:23]} 25. Qd3 {[%clk 0:01:45]}  Na3 {[%clk 0:02:23]} 26. Rbd1 {[%clk 0:01:40]}  c4 {[%clk 0:02:22]} 27. Qe2 {[%clk 0:01:39]}  b3 {[%clk 0:02:13]} 28. e5 {[%clk 0:01:35]}  Nc2 {[%clk 0:02:05]} 29. Rf1 {[%clk 0:01:27]}  Qg5 {[%clk 0:01:52]} 30. Bxa8 {[%clk 0:01:22]}  Rxa8 {[%clk 0:01:50]} 31. Rf3 {[%clk 0:01:06]}  dxe5 {[%clk 0:01:31]} 32. Qxc4 {[%clk 0:01:06]}  Nxd4 {[%clk 0:01:23]} 33. Qxf7+ {[%clk 0:00:55]}  Kh8 {[%clk 0:01:22]} 34. Rc3 {[%clk 0:00:43]}  b2 {[%clk 0:01:05]} 35. Kh2 {[%clk 0:00:34]}  Qf5 {[%clk 0:00:52]} 36. Qb7 {[%clk 0:00:31]}  Qf2+ {[%clk 0:00:43]} 37. Kh1 {[%clk 0:00:31]}  Rf8 {[%clk 0:00:43]} 38. Qe7 {[%clk 0:00:15]}  Qf5 {[%clk 0:00:34]} 39. Re1 {[%clk 0:00:05]}  b1=Q {[%clk 0:00:29]} 40. Rxb1 {[%clk 0:00:03]}  Qxh3+ {[%clk 0:00:29]} 41. Kg1 {[%clk 0:00:03]}  Ne2# {[%clk 0:00:30]} 0-1